Workbook

Sheet 附件4-1城乡设施运营
A1: 附件4-1
A2: 2024 年城乡社区养老服务设施运营奖补项目汇总表
A3: 槐荫区 民政局、财政局（盖章）
A4: 序号 | B4: 项目名称 | C4: 地址 | D4: 全市示范型养老服务设施（是/否） | E4: 类别 | H4: 评定等级 | K4: 建设规模（平方米） | L4: 设置床位（张） | M4: 建设投资总额（万元） | N4: 兴办主体 | Q4: 运营方式 | T4: 运营主体 | U4: 运营 时间 | V4: 县级确定补助资金（万元） | W4: 备注
E5: 街道综合养老中心 | F5: 社区日间照料中心 | G5: 农村幸福院 | H5: 一星 | I5: 二星 | J5: 三星 | N5: 政府（街道）建 | O5: 社会建 | P5: 政府与社会合资合作建 | Q5: 公建公营 | R5: 民建民营 | S5: 委托运营
B6: 1 | C6: 2 | D6: 3 | E6: 4 | F6: 5 | G6: 6 | H6: 7 | I6: 8 | J6: 9 | K6: 10 | L6: 11 | M6: 12 | N6: 13 | O6: 14 | P6: 15 | Q6: 16 | R6: 17 | S6: 18 | T6: 19 | U6: 20 | V6: 21
A7: 1 | B7: 营市街街道综合养老服务中心 | C7: 经十路510号3520社区南院 | D7: 否 | E7: √ | J7: √ | K7: 1650 | L7: 31 | M7: 150 | N7: √ | S7: √ | T7: 济南市槐荫区营市街3520社区卫生服务站 | U7: 2021-10-10 | V7: 10 | W7: 监管证明 | X7: 铁塔
A8: 2 | B8: 段店北路街道综合养老服务中心 | C8: 财富壹号花园三期北区7号楼底商 | D8: 否 | E8: √ | J8: √ | K8: 1257.74 | L8: 20 | M8: 200 | N8: √ | S8: √ | T8: 椿合慧养（山东）康养发展有限公司 | U8: 2022-01-25 | V8: 10 | W8: √
A9: 3 | B9: 吴家堡街道综合养老服务中心 | C9: 七里铺村333号 | D9: 否 | E9: √ | J9: √ | K9: 1500 | L9: 20 | M9: 167 | O9: √ | S9: √ | T9: 山东锦湘健康管理有限责任公司 | U9: 2021-10-14 | V9: 10 | W9: √
A10: 4 | B10: 振兴街街道综合养老服务中心 | C10: 卧龙路199号13号楼 | D10: 否 | E10: √ | I10: √ | K10: 1500 | L10: 74 | M10: 869 | N10: √ | S10: √ | T10: 山东恒协基爱老年产业发展有限公司 | U10: 2018-11-01 | V10: 8 | W10: √ | X10: 铁塔
A11: 5 | B11: 张庄路街道综合养老服务中心 | C11: 经十路28722-1号 | D11: 否 | E11: √ | I11: √ | K11: 1600 | L11: 30 | M11: 200 | P11: √ | S11: √ | T11: 济南市槐荫区颐养天年养老院 | U11: 2020-12-01 | V11: 8 | W11: √
A12: 6 | B12: 玉清湖街道综合养老服务中心 | C12: 金石鑫小区南邻 | D12: 否 | E12: √ | I12: √ | K12: 2018 | L12: 60 | M12: 600 | N12: √ | S12: √ | T12: 山东安诺心健康科技有限公司 | U12: 2020-12-01 | V12: 8 | W12: √
A13: 7 | B13: 青年公园街道综合养老服务中心 | C13: 纬七路96号 | D13: 否 | E13: √ | I13: √ | K13: 1500 | L13: 20 | M13: 200 | N13: √ | S13: √ | T13: 中民聚康（济南）养老产业有限公司 | U13: 2020-09-01 | V13: 8 | W13: √ | X13: 铁塔
A14: 8 | B14: 中大槐树街道综合养老服务中心 | C14: 槐荫区八里桥村300号 | D14: 否 | E14: √ | I14: √ | K14: 1500 | L14: 35 | M14: 300 | N14: √ | S14: √ | T14: 山东一邻养老服务有限公司 | U14: 2021-12-01 | V14: 8 | W14: √ | X14: 铁塔
A15: 9 | B15: 西市场街道综合养老服务中心 | C15: 纬十一路249号 | D15: 是,2023年 | E15: √ | I15: √ | K15: 1596.36 | L15: 22 | M15: 606.8 | N15: √ | S15: √ | T15: 山东泽蕙医养有限公司 | U15: 2022-08-18 | V15: 8 | W15: √ | X15: 铁塔
A16: 10 | B16: 匡山街道综合养老服务中心 | C16: 槐荫区济齐路112号 | D16: 否 | E16: √ | I16: √ | K16: 1200 | L16: 22 | M16: 548.665 | N16: √ | S16: √ | T16: 山东泽蕙医养有限公司 | U16: 2022-09-06 | V16: 8 | W16: √ | X16: 铁塔
A17: 11 | B17: 道德街街道综合养老服务中心 | C17: 经六路287-17-2单元底商 | D17: 否 | E17: √ | I17: √ | K17: 1099 | L17: 10 | M17: 70 | N17: √ | S17: √ | T17: 济南海泉养老服务中心 | U17: 2021-05-31 | V17: 8 | W17: √ | X17: 铁塔
A18: 12 | B18: 腊山街道综合养老服务中心 | C18: 绿地国际花都三期商业街103号 | D18: 否 | E18: √ | I18: √ | K18: 1896 | L18: 30 | M18: 120 | N18: √ | S18: √ | T18: 海艾思（山东）健康产业有限公司 | U18: 2018-06-01 | V18: 8 | W18: √ | X18: 铁塔
A19: 13 | B19: 美里湖街道综合养老服务中心 | C19: 美里路555号海那城5号楼 | D19: 否 | E19: √ | H19: √ | K19: 1500 | L19: 30 | M19: 150 | P19: √ | S19: √ | T19: 济南市槐荫区颐养天年养老院 | U19: 2019-12-01 | V19: 6 | W19: √
A20: 14 | B20: 五里沟街道综合养老服务中心 | C20: 纬七路与经二路交叉口东南80米 | D20: 否 | E20: √ | H20: √ | K20: 360 | L20: 10 | M20: 20 | N20: √ | S20: √ | T20: 山东乐养健康服务有限公司 | U20: 2022-01-01 | V20: 6 | W20: √
A21: 15 | B21: 吴家堡街道康城新苑日间照料中心 | C21: 康城新苑东门 | D21: 否 | F21: √ | J21: √ | K21: 1500 | L21: 10 | M21: 550 | N21: √ | S21: √ | T21: 济南群众路线餐饮管理有限公司 | U21: 2023-05-01 | V21: 5 | W21: √
A22: 16 | B22: 中大槐树街道忠厚街社区日间照料中心 | C22: 经二路701号 | D22: 否 | F22: √ | I22: √ | K22: 650 | L22: 10 | M22: 110 | N22: √ | S22: √ | T22: 济南绿地幸福家居家服务有限公司 | U22: 2020-09-01 | V22: 4 | W22: 1、申请表项目名称不规范 2、缺少监控证明 | X22: 铁塔
A23: 17 | B23: 中大槐树街道裕北社区日间照料中心 | C23: 张庄路54号 | D23: 否 | F23: √ | I23: √ | K23: 650 | L23: 10 | M23: 110 | N23: √ | S23: √ | T23: 济南绿地幸福家居家服务有限公司 | U23: 2021-08-01 | V23: 4 | W23: 1、申请表项目名称不规范 2、缺少监控证明 | X23: 铁塔
A24: 18 | B24: 中大槐树街道昆仑街社区日间照料中心 | C24: 纬十二路67号-1 | D24: 否 | F24: √ | I24: √ | K24: 904 | L24: 10 | M24: 115 | N24: √ | S24: √ | T24: 山东昆仑养生服务有限公司 | U24: 2019-12-01 | V24: 4 | W24: 监控证明。 | X24: 铁塔
A25: 19 | B25: 玉清湖街道北八里社区日间照料中心 | C25: 北八里社区居委会164号 | D25: 否 | F25: √ | I25: √ | K25: 1000 | L25: 10 | M25: 100 | N25: √ | Q25: √ | T25: 玉清湖街道北八里社区居委会 | U25: 2020-11-30 | V25: 4 | W25: 监管证明 | X25: 铁塔
A26: 20 | B26: 营市街街道营市西街社区日间照料中心 | C26: 营市西街18号C座 | D26: 否 | F26: √ | I26: √ | K26: 1050 | L26: 10 | M26: 50 | N26: √ | Q26: √ | T26: 营市街街道营市西街社区居委会 | U26: 2019-04-01 | V26: 4 | W26: 监管证明 | X26: 铁塔
A27: 21 | B27: 营市街街道营市东街社区日间照料中心 | C27: 营市街160-1 | D27: 否 | F27: √ | I27: √ | K27: 300 | L27: 6 | M27: 15 | N27: √ | Q27: √ | T27: 营市街街道营市东街社区居委会 | U27: 2022-09-07 | V27: 4 | W27: √ | X27: 铁塔
A28: 22 | B28: 营市街街道舜承苑社区日间照料中心 | C28: 经十路514号3号楼西头 | D28: 否 | F28: √ | I28: √ | K28: 350 | L28: 6 | M28: 20 | N28: √ | Q28: √ | T28: 营市街街道舜承苑社区居委会 | U28: 2022-09-07 | V28: 4 | W28: √ | X28: 铁塔
A29: 23 | B29: 营市街街道三五二零社区日间照料中心 | C29: 经十路25299号8号楼底商 | D29: 否 | F29: √ | I29: √ | K29: 350 | L29: 8 | M29: 75 | N29: √ | Q29: √ | T29: 营市街街道三五二零社区居委会 | U29: 2021-10-01 | V29: 4 | W29: 监管证明 | X29: 铁塔
A30: 24 | B30: 营市街街道绿园社区日间照料中心 | C30: 经十路24566号 | D30: 否 | F30: √ | I30: √ | K30: 1600 | L30: 10 | M30: 190 | N30: √ | Q30: √ | T30: 营市街街道绿园社区居委会 | U30: 2016-06-01 | V30: 4 | W30: 监管证明 | X30: 铁塔
A31: 25 | B31: 营市街街道凯旋新城社区日间照料中心 | C31: 经十路25156号 | D31: 否 | F31: √ | I31: √ | K31: 1000 | L31: 6 | M31: 63 | N31: √ | Q31: √ | T31: 营市街街道凯旋新城社区居委会 | U31: 2016-06-01 | V31: 4 | W31: 监管证明 | X31: 铁塔
A32: 26 | B32: 营市街街道机车社区日间照料中心 | C32: 机车新村新区3-1-102 | D32: 否 | F32: √ | I32: √ | K32: 400 | L32: 10 | M32: 38.66 | N32: √ | Q32: √ | T32: 营市街街道机车社区居委会 | U32: 2016-06-01 | V32: 4 | W32: 监管证明 | X32: 铁塔
A33: 27 | B33: 营市街街道槐村街社区日间照料中心 | C33: 槐村街25号 | D33: 否 | F33: √ | I33: √ | K33: 600 | L33: 8 | M33: 80 | N33: √ | Q33: √ | T33: 营市街街道槐村街社区居委会 | U33: 2018-08-01 | V33: 4 | W33: 监管证明 | X33: 铁塔
A34: 28 | B34: 兴福街道顺安社区日间照料中心 | C34: 顺安苑小区4号楼1楼 | D34: 是,2023年 | F34: √ | I34: √ | K34: 875 | L34: 20 | M34: 50 | N34: √ | S34: √ | T34: 尊尚健康产业有限公司 | U34: 2016-03-01 | V34: 4 | W34: √
A35: 29 | B35: 兴福街道锦绣朗园社区日间照料中心 | C35: 锦绣朗园小区1、3、5号楼1楼 | D35: 否 | F35: √ | I35: √ | K35: 510 | L35: 7 | M35: 50 | N35: √ | S35: √ | T35: 护乐家（山东）护理有限责任公司 | U35: 2021-10-04 | V35: 4 | W35: √
A36: 30 | B36: 兴福街道济水上苑南区社区日间照料中心 | C36: 济水上苑南区1号楼 | D36: 否 | F36: √ | I36: √ | K36: 700 | L36: 8 | M36: 50 | N36: √ | S36: √ | T36: 山东福仁美健康产业集团有限公司 | U36: 2018-11-30 | V36: 4 | W36: √
A37: 31 | B37: 兴福街道济水上苑北区社区日间照料中心 | C37: 济水上苑北区14-15号楼内商铺 | D37: 否 | F37: √ | I37: √ | K37: 912.92 | L37: 10 | M37: 60 | N37: √ | S37: √ | T37: 山东福仁美健康产业集团有限公司 | U37: 2020-10-18 | V37: 4 | W37: √
A38: 32 | B38: 兴福街道恒大雅苑社区日间照料中心 | C38: 恒大雅苑小区8号楼一楼 | D38: 否 | F38: √ | I38: √ | K38: 750 | L38: 10 | M38: 50 | N38: √ | S38: √ | T38: 山东福寿康养老服务有限公司 | U38: 2018-07-16 | V38: 4 | W38: √
A39: 33 | B39: 西市场街道纬十路社区日间照料中心 | C39: 纬十路52-2号 | D39: 否 | F39: √ | I39: √ | K39: 780 | L39: 10 | M39: 85 | N39: √ | S39: √ | T39: 飞跃重洋（山东）文化发展有限公司 | U39: 2022-11-01 | V39: 4 | W39: √
A40: 34 | B40: 西市场街道华联社区日间照料中心 | C40: 纬十一路249号 | D40: 否 | F40: √ | I40: √ | K40: 400 | L40: 10 | M40: 80 | N40: √ | S40: √ | T40: 山东泽蕙医养有限公司 | U40: 2021-08-01 | V40: 4 | W40: √ | X40: 移动
A41: 35 | B41: 五里沟街道顺祥街社区日间照料中心 | C41: 纬六路9号 | D41: 否 | F41: √ | I41: √ | K41: 600 | L41: 6 | M41: 20 | N41: √ | Q41: √ | T41: 五里沟街道顺祥街社区居委会 | U41: 2021-10-01 | V41: 4 | W41: 监管证明 | X41: 铁塔
A42: 36 | B42: 南辛庄街道欣园社区日间照料中心 | C42: 南辛庄街与南辛东街交叉路口南侧 | D42: 否 | F42: √ | I42: √ | K42: 500 | L42: 10 | M42: 30 | N42: √ | S42: √ | T42: 济南曜阳国际老年公寓 | U42: 2020-11-20 | V42: 4 | W42: √
A43: 37 | B43: 南辛庄街道辛西路社区日间照料中心 | C43: 映月紫云城北区4号楼 | D43: 否 | F43: √ | I43: √ | K43: 750 | L43: 10 | M43: 30 | N43: √ | S43: √ | T43: 济南曜阳国际老年公寓 | U43: 2021-05-09 | V43: 4 | W43: √
A44: 38 | B44: 南辛庄街道南辛苑社区日间照料中心 | C44: 南辛庄街70号 | D44: 否 | F44: √ | I44: √ | K44: 750 | L44: 10 | M44: 30 | N44: √ | S44: √ | T44: 济南曜阳国际老年公寓 | U44: 2019-12-02 | V44: 4 | W44: √
A45: 39 | B45: 南辛庄街道济微路社区日间照料中心 | C45: 机床二厂路11号映月紫云城北区5号楼1楼 | D45: 是,2023年 | F45: √ | I45: √ | K45: 957.83 | L45: 10 | M45: 30 | N45: √ | S45: √ | T45: 济南曜阳国际老年公寓 | U45: 2021-12-01 | V45: 4 | W45: √
A46: 40 | B46: 南辛庄街道东路社区日间照料中心 | C46: 南辛庄街8-1 | D46: 否 | F46: √ | I46: √ | K46: 750 | L46: 10 | M46: 30 | N46: √ | S46: √ | T46: 济南曜阳国际老年公寓 | U46: 2020-08-31 | V46: 4 | W46: √
A47: 41 | B47: 腊山街道泉景园社区日间照料中心 | C47: 刘长山路116号泉景园一期物业二楼 | D47: 否 | F47: √ | I47: √ | K47: 500 | L47: 10 | M47: 40 | N47: √ | T47: 菏泽大爱养老服务有限公司 | U47: 2021-09-01 | V47: 4 | W47: 申请表：有错误； 运营报告抬头和落款不规范； | X47: 铁塔
A48: 42 | B48: 腊山街道腊山南苑第一社区日间照料中心 | C48: 腊山南苑一区5号楼 | D48: 否 | F48: √ | I48: √ | K48: 300 | L48: 6 | M48: 30 | N48: √ | Q48: √ | S48: √ | T48: 海艾思（山东）健康产业有限公司 | U48: 2022-09-01 | V48: 4 | X48: 移动
A49: 43 | B49: 中大槐树街道裕园社区日间照料中心 | C49: 裕园小区6号楼南临 | D49: 否 | F49: √ | H49: √ | K49: 450 | L49: 4 | M49: 10 | N49: √ | S49: √ | T49: 济南市槐荫区裕园扶老服务中心 | U49: 2016-06-01 | V49: 3 | W49: 监管证明 | X49: 铁塔
A50: 44 | B50: 中大槐树街道御景社区日间照料中心 | C50: 御景城小区 | D50: 否 | F50: √ | H50: √ | K50: 350 | L50: 10 | M50: 105 | N50: √ | S50: √ | T50: 济南绿地幸福家居家服务有限公司 | U50: 2019-10-01 | V50: 3 | W50: √ | X50: 铁塔
A51: 45 | B51: 玉清湖街道南八里社区日间照料中心 | C51: 南八里社区居委会 | D51: 否 | F51: √ | H51: √ | K51: 615 | L51: 8 | M51: 150 | N51: √ | Q51: √ | T51: 玉清湖街道南八里社区居委会 | U51: 2018-12-03 | V51: 3 | W51: 监管证明 | X51: 铁塔
A52: 46 | B52: 兴福街道绿地中央广场社区日间照料中心 | C52: 绿地中央广场3区4号楼西单元一楼 | D52: 否 | F52: √ | H52: √ | K52: 789 | L52: 12 | M52: 500 | N52: √ | S52: √ | T52: 济南市康逸堂医疗服务有限公司 | U52: 2022-10-19 | V52: 3 | W52: 监管证明 | X52: 铁塔
A53: 47 | B53: 兴福街道龙湖郦城社区日间照料中心 | C53: 龙湖水晶郦城东区2-1-1楼和2楼 | D53: 否 | F53: √ | H53: √ | K53: 510 | L53: 10 | M53: 20 | N53: √ | S53: √ | T53: 护乐家（山东）护理有限责任公司 | U53: 2020-11-02 | V53: 3 | W53: √
A54: 48 | B54: 兴福街道金科城第二社区日间照料中心 | C54: 金科城D区2号楼2单元1楼 | D54: 否 | F54: √ | H54: √ | K54: 754 | L54: 10 | M54: 50 | N54: √ | Q54: √ | T54: 护乐家（山东）护理有限责任公司 | U54: 2020-09-30 | V54: 3 | W54: √
A55: 49 | B55: 五里沟街道和平里社区日间照料中心 | C55: 纬七路24号 | D55: 否 | F55: √ | H55: √ | K55: 310 | L55: 3 | M55: 15 | N55: √ | Q55: √ | T55: 五里沟街道和平里社区居委会 | U55: 2022-01-17 | V55: 3 | W55: 监管证明 | X55: 移动
A56: 50 | B56: 五里沟街道公祥街社区日间照料中心 | C56: 纬六路26号 | D56: 否 | F56: √ | H56: √ | K56: 150 | L56: 3 | M56: 15 | N56: √ | Q56: √ | T56: 五里沟街道公祥街社区居委会 | U56: 2022-09-10 | V56: 3 | W56: 监管证明 | X56: 移动
A57: 51 | B57: 五里沟街道发祥巷社区日间照料中心 | C57: 经二路251号 | D57: 否 | F57: √ | H57: √ | K57: 500 | L57: 3 | M57: 15 | N57: √ | Q57: √ | T57: 五里沟街道发祥巷社区居委会 | U57: 2021-09-23 | V57: 3 | W57: 监管证明 | X57: 铁塔
A58: 52 | B58: 匡山街道匡山小区东街社区日间照料中心 | C58: 幸福街琪鑫苑小区内 | D58: 否 | F58: √ | H58: √ | K58: 816.07 | L58: 10 | M58: 40 | N58: √ | Q58: √ | T58: 匡山街道匡山小区东街社区居委会 | U58: 2022-09-01 | V58: 3 | W58: 监管证明 | X58: 铁塔
A59: 53 | B59: 匡山街道匡山社区日间照料中心 | C59: 匡山村新时代文明实践站三楼 | D59: 否 | F59: √ | H59: √ | K59: 3400 | L59: 20 | N59: √ | Q59: √ | T59: 匡山村党群活动中心 | U59: 2022-09-01 | V59: 3 | W59: 监管证明 | X59: 铁塔
A60: 54 | B60: 道德街街道新世界阳光花园社区日间照料中心 | C60: 经七路669号 | D60: 否 | F60: √ | H60: √ | K60: 1500 | L60: 10 | M60: 100 | N60: √ | Q60: √ | T60: 道德街街道新世界阳光花园社区居委会 | U60: 2021-12-03 | V60: 3 | W60: 监管证明 | X60: 铁塔
A61: 55 | B61: 道德街街道绿地新城社区日间照料中心 | C61: 槐荫区经六路287号绿地新城小区2号楼1层党群服务中心 | D61: 否 | F61: √ | H61: √ | K61: 1000 | L61: 10 | M61: 80 | N61: √ | Q61: √ | T61: 道德街街道绿地新城社区居委会 | U61: 2021-12-03 | V61: 3 | W61: 监管证明 | X61: 铁塔
A62: 56 | B62: 腊山街道后周村幸福院 | C62: 腊山街道后周村 | D62: 否 | G62: √ | I62: √ | K62: 1000 | L62: 20 | M62: 75 | N62: √ | Q62: √ | T62: 腊山街道后周村村委会 | U62: 2018-12-03 | V62: 4 | W62: 申请表：项目名称不规范 | X62: 移动
A63: 57 | B63: 腊山街道前周村幸福院 | C63: 腊山街道前周村 | D63: 否 | G63: √ | I63: √ | K63: 600 | L63: 20 | M63: 50 | N63: √ | Q63: √ | T63: 腊山街道前周村村委会 | U63: 2018-08-10 | V63: 4 | W63: √ | X63: 移动
A64: 58 | B64: 美里湖街道北王村幸福院 | C64: 美里湖街道北王庄村 | D64: 否 | G64: √ | I64: √ | K64: 700 | L64: 20 | M64: 72.8 | N64: √ | Q64: √ | T64: 美里湖街道北王村村委会 | U64: 2018-07-03 | V64: 4 | W64: √ | X64: 移动
A65: 59 | B65: 美里湖街道范庄村幸福院 | C65: 美里湖街道范庄村 | D65: 否 | G65: √ | I65: √ | K65: 800 | L65: 20 | M65: 105 | N65: √ | Q65: √ | T65: 美里湖街道范庄村村委会 | U65: 2018-03-03 | V65: 4 | W65: √ | X65: 移动
A66: 60 | B66: 美里湖街道刘七沟村幸福院 | C66: 美里湖街道刘七沟村 | D66: 否 | G66: √ | I66: √ | K66: 800 | L66: 20 | M66: 83 | N66: √ | Q66: √ | T66: 美里湖街道刘七沟村村委会 | U66: 2019-03-02 | V66: 4 | W66: √ | X66: 移动
A67: 61 | B67: 美里湖街道邱庄村幸福院 | C67: 美里湖街道邱庄村 | D67: 否 | G67: √ | I67: √ | K67: 750 | L67: 20 | M67: 116 | N67: √ | Q67: √ | T67: 美里湖街道邱庄村村委会 | U67: 2017-12-01 | V67: 4 | W67: √ | X67: 移动
A68: 62 | B68: 美里湖街道郑店村幸福院 | C68: 美里湖街道郑家店村 | D68: 否 | G68: √ | I68: √ | K68: 400 | L68: 20 | M68: 90 | N68: √ | Q68: √ | T68: 美里湖街道郑店村村委会 | U68: 2020-07-28 | V68: 4 | W68: √ | X68: 移动
A69: 63 | B69: 美里湖街道邹庄村幸福院 | C69: 美里湖街道邹庄村 | D69: 否 | G69: √ | I69: √ | K69: 1000 | L69: 20 | M69: 110 | N69: √ | Q69: √ | T69: 美里湖街道邹庄村村委会 | U69: 2017-12-01 | V69: 4 | W69: √ | X69: 移动
A70: 64 | B70: 美里湖街道段庄村幸福院 | C70: 美里湖街道段庄村 | D70: 否 | G70: √ | I70: √ | K70: 425 | L70: 10 | M70: 110 | N70: √ | Q70: √ | T70: 美里湖街道段庄村村委会 | U70: 2020-11-06 | V70: 4 | W70: √ | X70: 移动
A71: 65 | B71: 美里湖街道李家寺村幸福院 | C71: 美里湖街道李家寺村 | D71: 否 | G71: √ | I71: √ | K71: 1000 | L71: 10 | M71: 126 | N71: √ | Q71: √ | T71: 美里湖街道李家寺村村委会 | U71: 2021-11-14 | V71: 4 | W71: √ | X71: 移动
A72: 66 | B72: 美里湖街道蒋庄村幸福院 | C72: 美里湖街道蒋庄村 | D72: 否 | G72: √ | H72: √ | K72: 900 | L72: 10 | M72: 165 | N72: √ | Q72: √ | T72: 美里湖街道蒋庄村村委会 | U72: 2021-11-16 | V72: 3 | W72: √ | X72: 移动
A73: 67 | B73: 玉清湖街道新庞村幸福院 | C73: 玉清湖街道新庞庄村 | D73: 是,2023年 | G73: √ | J73: √ | K73: 1200 | L73: 20 | M73: 80 | N73: √ | Q73: √ | T73: 玉清湖街道新庞村村委会 | U73: 2018-12-03 | V73: 5 | W73: 监管证明 | X73: 移动
A74: 68 | B74: 玉清湖街道常旗屯村幸福院 | C74: 玉清湖街道常旗屯村 | D74: 否 | G74: √ | J74: √ | K74: 800 | L74: 20 | M74: 50 | N74: √ | Q74: √ | T74: 玉清湖街道常旗屯村村委会 | U74: 2021-09-03 | V74: 5 | W74: 监管证明 | X74: 移动
A75: 69 | B75: 玉清湖街道由里村幸福院 | C75: 玉清湖街道由里村 | D75: 否 | G75: √ | J75: √ | K75: 1150 | L75: 20 | M75: 153 | N75: √ | Q75: √ | T75: 玉清湖街道由里村村委会 | U75: 2021-09-06 | V75: 5 | W75: 监管证明 | X75: 移动
A76: 70 | B76: 玉清湖街道朱庄村幸福院 | C76: 玉清湖街道朱庄村 | D76: 否 | G76: √ | J76: √ | K76: 1000 | L76: 20 | M76: 155 | N76: √ | Q76: √ | T76: 玉清湖街道朱庄村村委会 | U76: 2021-09-01 | V76: 5 | W76: 监管证明 | X76: 移动
A77: 71 | B77: 玉清湖街道东谢屯村幸福院 | C77: 玉清湖街道东谢屯村 | D77: 否 | G77: √ | J77: √ | K77: 900 | L77: 20 | M77: 100 | N77: √ | Q77: √ | T77: 玉清湖街道东谢屯村村委会 | U77: 2021-09-06 | V77: 5 | W77: 监管证明 | X77: 移动
A78: 72 | B78: 玉清湖街道宋家桥村幸福院 | C78: 玉清湖街道宋家桥村 | D78: 否 | G78: √ | I78: √ | K78: 860 | L78: 20 | M78: 80 | N78: √ | Q78: √ | T78: 玉清湖街道宋家桥村村委会 | U78: 2018-12-03 | V78: 4 | W78: 监管证明 | X78: 移动
A79: 73 | B79: 玉清湖街道麻沟村幸福院 | C79: 玉清湖街道麻沟村 | D79: 否 | G79: √ | I79: √ | K79: 943 | L79: 20 | M79: 86 | N79: √ | Q79: √ | T79: 玉清湖街道麻沟村村委会 | U79: 2020-09-10 | V79: 4 | W79: 监管证明 | X79: 移动
A80: 74 | B80: 玉清湖街道西王府村幸福院 | C80: 玉清湖街道西王府村 | D80: 否 | G80: √ | I80: √ | K80: 780 | L80: 20 | M80: 130 | N80: √ | Q80: √ | T80: 玉清湖街道西王府村村委会 | U80: 2021-11-13 | V80: 4 | W80: 监管证明 | X80: 移动
A81: 75 | B81: 玉清湖街道小杨庄村幸福院 | C81: 玉清湖街道小杨庄村 | D81: 否 | G81: √ | I81: √ | K81: 800 | L81: 20 | M81: 130 | N81: √ | Q81: √ | T81: 玉清湖街道小杨庄村村委会 | U81: 2021-11-16 | V81: 4 | W81: 监管证明 | X81: 移动
A82: 76 | B82: 玉清湖街道龙王庙村幸福院 | C82: 玉清湖街道龙王庙村 | D82: 否 | G82: √ | I82: √ | K82: 850 | L82: 20 | M82: 68 | N82: √ | Q82: √ | T82: 玉清湖街道龙王庙村村委会 | U82: 2023-05-01 | V82: 4 | W82: 监管证明 | X82: 移动
A83: 77 | B83: 吴家堡街道明里村幸福院 | C83: 吴家堡街道明里村 | D83: 是,2023年 | G83: √ | J83: √ | K83: 760 | L83: 20 | M83: 170 | N83: √ | Q83: √ | T83: 吴家堡街道明里村村委会 | U83: 2020-09-05 | V83: 5 | W83: √
A84: 78 | B84: 吴家堡街道曹圈村幸福院 | C84: 吴家堡街道曹家圈村 | D84: 否 | G84: √ | J84: √ | K84: 400 | L84: 20 | M84: 50 | N84: √ | Q84: √ | T84: 吴家堡街道曹圈村村委会 | U84: 2016-08-01 | V84: 5 | W84: √
A85: 79 | B85: 吴家堡街道韩道口村幸福院 | C85: 韩道口村村内 | D85: 否 | G85: √ | J85: √ | K85: 750 | L85: 20 | M85: 98.2 | N85: √ | Q85: √ | T85: 吴家堡街道韩道口村委会 | U85: 2021-11-26 | V85: 5 | W85: √
A86: 80 | B86: 吴家堡街道三教堂村幸福院 | C86: 吴家堡街道三教堂村 | D86: 否 | G86: √ | J86: √ | K86: 1024 | L86: 20 | M86: 160 | N86: √ | Q86: √ | T86: 吴家堡街道三教堂村村委会 | U86: 2015-07-01 | V86: 5 | W86: √
A87: 81 | B87: 吴家堡街道西张村幸福院 | C87: 吴家堡街道西张家庄村 | D87: 否 | G87: √ | J87: √ | K87: 750 | L87: 20 | M87: 100 | N87: √ | Q87: √ | T87: 吴家堡街道西张村村委会 | U87: 2019-09-20 | V87: 5 | W87: √
A88: 82 | B88: 吴家堡街道安庄村幸福院 | C88: 吴家堡街道安家庄村 | D88: 否 | G88: √ | J88: √ | K88: 400 | L88: 13 | M88: 220 | N88: √ | Q88: √ | T88: 吴家堡街道安庄村村委会 | U88: 2016-12-01 | V88: 5 | W88: √
A89: 83 | B89: 吴家堡街道大杨村幸福院 | C89: 吴家堡街道大杨家庄村 | D89: 否 | G89: √ | J89: √ | K89: 1000 | L89: 20 | M89: 60 | N89: √ | Q89: √ | T89: 吴家堡街道大杨村村委会 | U89: 2019-09-09 | V89: 5 | W89: √
A90: 84 | B90: 吴家堡街道申庄村幸福院 | C90: 吴家堡街道申家庄村 | D90: 否 | G90: √ | I90: √ | K90: 480 | L90: 20 | M90: 60 | N90: √ | Q90: √ | T90: 吴家堡街道申庄村村委会 | U90: 2016-12-01 | V90: 4 | W90: √
A91: 85 | B91: 吴家堡街道西王村幸福院 | C91: 吴家堡街道西王家庄村 | D91: 否 | G91: √ | I91: √ | K91: 450 | L91: 18 | M91: 50 | N91: √ | Q91: √ | T91: 吴家堡街道西王村村委会 | U91: 2015-12-01 | V91: 4 | W91: √
A92: 86 | B92: 吴家堡街道裴庄村幸福院 | C92: 吴家堡街道裴庄村 | D92: 否 | G92: √ | I92: √ | K92: 700 | L92: 20 | M92: 79 | N92: √ | Q92: √ | T92: 吴家堡街道裴庄村村委会 | U92: 2019-12-21 | V92: 4 | W92: √
A93: 87 | B93: 吴家堡街道闫庄村幸福院 | C93: 吴家堡街道闫庄村 | D93: 否 | G93: √ | I93: √ | K93: 760 | L93: 20 | M93: 188 | N93: √ | Q93: √ | T93: 吴家堡街道闫庄村村委会 | U93: 2020-08-20 | V93: 4 | W93: √
A94: 88 | B94: 吴家堡街道北店子村幸福院 | C94: 吴家堡街道北店子村 | D94: 否 | G94: √ | I94: √ | K94: 280 | L94: 2 | M94: 7.15 | N94: √ | Q94: √ | T94: 吴家堡街道北店子村村委会 | U94: 2023-08-21 | V94: 4 | W94: √ | X94: 移动
A95: 89 | B95: 吴家堡街道南吴家堡村幸福院 | C95: 吴家堡街道南吴家堡村 | D95: 否 | G95: √ | I95: √ | K95: 240 | L95: 2 | M95: 10 | N95: √ | Q95: √ | T95: 吴家堡街道南吴家堡村村委会 | U95: 2023-08-21 | V95: 4 | W95: √ | X95: 移动
A96: 90 | B96: 吴家堡街道七里铺村幸福院 | C96: 吴家堡街道七里铺村 | D96: 否 | G96: √ | I96: √ | K96: 400 | L96: 20 | M96: 29 | N96: √ | Q96: √ | T96: 吴家堡街道七里铺村村委会 | U96: 2016-08-01 | V96: 4 | W96: √
A97: 91 | B97: 吴家堡街道小杨家庄村幸福院 | C97: 吴家堡街道小杨家庄村 | D97: 否 | G97: √ | H97: √ | K97: 180 | L97: 2 | M97: 3.55 | N97: √ | Q97: √ | T97: 吴家堡街道小杨家庄村村委会 | U97: 2023-08-21 | V97: 3 | W97: √
A98: 92 | B98: 兴福街道彭庄村幸福院 | C98: 兴福街道彭家庄村 | D98: 否 | G98: √ | H98: √ | K98: 480 | L98: 16 | M98: 50 | N98: √ | Q98: √ | T98: 兴福街道彭庄村村委会 | U98: 2014-12-01 | V98: 3 | W98: √
A99: 合计 | D99: \ | E99: 14 | F99: 41 | G99: 38 | H99: 18 | I99: 59 | J99: 16 | K99: \ | L99: =SUM(L7:L98) -> 1431 | M99: \ | N99: 89 | O99: 1 | P99: 2 | Q99: 58 | R99: 0 | S99: 35 | T99: \ | U99: \ | V99: =SUM(V7:V98) -> 423
A100: 注：1.此表以县（市、区）和市为单位逐级统一汇总上报；2.本表第4-10列、14-19列请对照项目具体情况分别打“√”，其余项请据实填报。

Sheet 附件6-1家床运营
A1: 附件6-1
A2: 2024 年家庭养老床位运营奖补项目汇总表
A3: 槐荫区 民政局、财政局（盖章）
A4: 序号 | B4: 服务机构名称 | C4: 地址 | D4: 类别 | F4: 评定星级 | G4: 运营方式 | I4: 运营组织（企业）名称 | J4: 法人及电话 | K4: 设置家庭床位（张） | L4: 申请运营补助人数（人） | M4: 人员类别 | O4: 申请补助金额（万元） | P4: 县级确定补助资金（万元）
D5: 养老机构 | E5: 街道综合养老中心 | G5: 民建民营 | H5: 委托运营 | M5: 一般老人 | N5: 低保、优抚、计生特扶 | P5: 核定运营补助人数（人） | Q5: 其中：一般老人 | R5: 低保、优抚、计生特扶 | S5: 县级确定补助资金（万元）
B6: 1 | C6: 2 | D6: 3 | E6: 4 | F6: 5 | G6: 6 | H6: 7 | I6: 8 | J6: 9 | K6: 10 | L6: 11 | M6: 12 | N6: 13 | O6: 14 | P6: 15 | Q6: 16 | R6: 17 | S6: 18
A7: 1 | B7: 济南绿地幸福家养护院 | C7: 中大槐树街道君御世家花园3号楼 | D7: √ | G7: √ | I7: 济南绿地幸福家养护院 | J7: 魏涛 18***09 | K7: 68 | L7: =M7+N7 -> 57 | M7: 51 | N7: 6 | O7: 17.04 | P7: 57 | Q7: 51 | R7: 6 | S7: 17.04
A8: 2 | B8: 济南市槐荫区温暖老年公寓 | C8: 槐荫区前屯小区 | D8: √ | G8: √ | I8: 槐荫区温暖老年公寓 | J8: 杜雷 13***62 | K8: 68 | L8: 59 | M8: 57 | N8: 2 | O8: 17.13 | P8: 59 | Q8: 57 | R8: 2 | S8: 17.13
A9: 3 | B9: 济南曜阳国际老年公寓 | C9: 槐荫区南辛庄街68-1号 | D9: √ | G9: √ | I9: 济南曜阳国际老年公寓 | J9: 张晓宁 16***06 | K9: 152 | L9: 148 | M9: 145 | N9: 3 | O9: 37.74 | P9: 148 | Q9: 145 | R9: 3 | S9: 37.74
A10: 4 | B10: 济南市槐荫区颐养天年养老院 | C10: 槐荫区美里路555号 | D10: √ | G10: √ | I10: 槐荫区颐养天年养老院 | J10: 袁明东 13***85 | K10: 48 | L10: 43 | M10: 42 | N10: 1 | O10: 11.115 | P10: 43 | Q10: 42 | R10: 1 | S10: 11.115
A11: 合计 | D11: \ | E11: \ | F11: \ | G11: \ | H11: \ | I11: \ | J11: \ | K11: =SUM(K7:K10) -> 336 | L11: =SUM(L7:L10) -> 307 | M11: 295 | N11: 12 | O11: 83.025 | P11: 307 | Q11: 295 | R11: 12 | S11: 83.025
A12: 注：1.此表以县（区）为单位逐级统一汇总上报；2.本表第3-4列、6-7列请对照项目具体情况分别打“√”，其余项请据实填报。

Sheet 附件7-1居家养老
A1: 附件7-1
A2: 2024 年居家基本养老服务奖补项目汇总表
A3: 槐荫区 民政局、财政局（盖章）
A4: 序号 | B4: 居家养老服务组织名称 | C4: 地址 | D4: 法人及电话 | E4: 服务组织类别 | I4: 申请居家补助人数（人） | J4: 服务类别及人数 | N4: 申请补助金额（万元） | O4: 县级确定补助资金（万元）
E5: 养老机构 | F5: 街道综合养老中心 | G5: 社区日间照料中心 | H5: 其他养老组织 | J5: 5-6级 | K5: 3-4级 | L5: 1-2级 | M5: 高龄独居 | O5: 核定运营补助人数（人） | P5: 5-6级 | Q5: 3-4级 | R5: 1-2级 | S5: 高龄独居 | T5: 县级确定补助资金（万元）
B6: 1 | C6: 2 | D6: 3 | E6: 4 | F6: 5 | G6: 6 | H6: 7 | I6: 8 | J6: 9 | K6: 10 | L6: 11 | M6: 12 | N6: 13 | O6: 14 | P6: 15 | Q6: 16 | R6: 17 | S6: 18 | T6: 19
A7: 1 | B7: 山东绿地幸福家综合服务有限公司 | C7: 济南市市中区泉景鸿园商务大厦1716室 | D7: 魏涛 18***09 | H7: √ | I7: 396 | J7: 23 | K7: 154 | L7: 41 | M7: 178 | N7: 94.516 | O7: 396 | P7: 23 | Q7: 154 | R7: 41 | S7: 178 | T7: 94.516
A8: 合计 | D8: \ | E8: \ | F8: \ | G8: \ | H8: 1 | I8: =I7 -> 396 | J8: =J7 -> 23 | K8: 154 | L8: 41 | M8: 178 | N8: 94.516 | O8: 396 | P8: 23 | Q8: 154 | R8: 41 | S8: 178 | T8: 94.516
A9: 注：1.此表以县（区）为单位逐级统一汇总上报；2.本表第4-7列请对照项目具体情况分别打“√”，其余项请据实填报。

Sheet 附件10老年就餐补贴
A1: 附件10
A2: 2024 年老年就餐补贴统计表
A4: 槐荫区 民政局、财政局（盖章）
A5: 助餐机构 | B5: 区/县 | C5: 助餐人次 | D5: 60 周岁至 69 周岁的济南户籍老年人（人次） | E5: 70 周岁至79周岁的济南户籍老年人 | G5: 80 周岁以上济南户籍老年人 | I5: 60周岁以上享受抚恤定补优抚对象、低保家庭、低收入家庭和计划生育特殊困难家庭中老年人 | K5: 区县审批补贴情况 | M5: 市级审批补贴金额（元）
E6: 数量 （人次） | F6: 金额 （元） | G6: 数量 （人次） | H6: 金额 （元） | I6: 数量 （人次） | J6: 金额 （元） | K6: 总数量 （人次） | L6: 总金额 （元）
A7: 西市场街道华联社区日间照料中心 | B7: 槐荫区 | C7: 1012 | D7: 65 | E7: 44 | F7: =E7*1 -> 44 | G7: 896 | H7: =G7*2 -> 1792 | I7: 7 | J7: =I7*2 -> 14 | K7: 1012 | L7: =F7+H7+J7 -> 1850
A8: 南辛庄街道济微路社区日间照料中心长者食堂 | B8: 槐荫区 | C8: 757 | D8: 2 | E8: 148 | F8: 148 | G8: 607 | H8: 1214 | I8: 0 | J8: 0 | K8: 757 | L8: 1362
A9: 槐荫区绿城诚园综合养老服务中心长者食堂 | B9: 槐荫区 | C9: 122 | D9: 29 | E9: 69 | F9: 69 | G9: 24 | H9: 48 | I9: 0 | J9: 0 | K9: 122 | L9: 117
A10: 槐荫区美里湖街道美里新居社区助餐服务站 | B10: 槐荫区 | C10: 3 | D10: 0 | E10: 3 | F10: 3 | G10: 0 | H10: 0 | I10: 0 | J10: 0 | K10: 3 | L10: 3
A11: 槐荫区腊山街道综合养老服务中心助餐服务站 | B11: 槐荫区 | C11: 3 | D11: 3 | E11: 0 | F11: 0 | G11: 0 | H11: 0 | I11: 0 | J11: 0 | K11: 3 | L11: 0
A12: 槐荫区腊山街道腊山南苑第一社区助餐服务站 | B12: 槐荫区 | C12: 72 | D12: 56 | E12: 16 | F12: 16 | G12: 0 | H12: 0 | I12: 0 | J12: 0 | K12: 72 | L12: 16
A13: 槐荫区西市场街道综合养老服务中心长者食堂 | B13: 槐荫区 | C13: 979 | D13: 12 | E13: 421 | F13: 421 | G13: 544 | H13: 1088 | I13: 2 | J13: 4 | K13: 979 | L13: 1513
A14: 南辛庄街道辛西路社区助餐服务站（南辛庄街道南辛苑社区日间照料中心） | B14: 槐荫区 | C14: 1564 | D14: 1 | E14: 769 | F14: 769 | G14: 794 | H14: 1588 | I14: 0 | J14: 0 | K14: 1564 | L14: 2357
A15: 槐荫区兴福街道顺安社区助餐服务站 | B15: 槐荫区 | C15: 295 | D15: 108 | E15: 130 | F15: 130 | G15: 56 | H15: 112 | I15: 1 | J15: 2 | K15: 295 | L15: 244
A16: 槐荫区段店北路街道综合养老服务中心长者食堂 | B16: 槐荫区 | C16: 1625 | D16: 90 | E16: 1048 | F16: 1048 | G16: 487 | H16: 974 | I16: 0 | J16: 0 | K16: 1625 | L16: 2022
A17: 槐荫区张庄路街道综合养老服务中心助餐服务站 | B17: 槐荫区 | C17: 7228 | D17: 4437 | E17: 2447 | F17: 2447 | G17: 324 | H17: 648 | I17: 20 | J17: 40 | K17: 7228 | L17: 3135
A18: 五里沟街道顺祥街社区日间照料中心 | B18: 槐荫区 | C18: 34 | D18: 2 | E18: 32 | F18: 32 | G18: 0 | H18: 0 | I18: 0 | J18: 0 | K18: 34 | L18: 32
A19: 槐荫区匡山街道综合养老服务中心长者食堂 | B19: 槐荫区 | C19: 1803 | D19: 375 | E19: 865 | F19: 865 | G19: 563 | H19: 1126 | I19: 0 | J19: 0 | K19: 1803 | L19: 1991
A20: 槐荫区青年公园街道综合养老服务中心助餐服务站 | B20: 槐荫区 | C20: 1057 | D20: 3 | E20: 452 | F20: 452 | G20: 601 | H20: 1202 | I20: 1 | J20: 2 | K20: 1057 | L20: 1656
A21: 槐荫区西市场街道纬十路社区助餐服务站 | B21: 槐荫区 | C21: 1196 | D21: 352 | E21: 313 | F21: 313 | G21: 526 | H21: 1052 | I21: 5 | J21: 10 | K21: 1196 | L21: 1375
A22: 槐荫区中大槐树街道昆仑社区长者食堂 | B22: 槐荫区 | C22: 482 | D22: 41 | E22: 318 | F22: 318 | G22: 113 | H22: 226 | I22: 10 | J22: 20 | K22: 482 | L22: 564
A23: 槐荫区玉清湖街道南八里社区助餐服务站 | B23: 槐荫区 | C23: 2561 | D23: 1 | E23: 1986 | F23: 1986 | G23: 574 | H23: 1148 | I23: 0 | J23: 0 | K23: 2561 | L23: 3134
A24: 槐荫区匡山街道匡山小区东街社区助餐服务站（匡山小区东街社区长者食堂） | B24: 槐荫区 | C24: 579 | D24: 0 | E24: 174 | F24: 174 | G24: 405 | H24: 810 | I24: 0 | J24: 0 | K24: 579 | L24: 984
A25: 槐荫区五里沟街道公祥街社区助餐服务站 | B25: 槐荫区 | C25: 5 | D25: 0 | E25: 0 | F25: 0 | G25: 5 | H25: 10 | I25: 0 | J25: 0 | K25: 5 | L25: 10
A26: 槐荫区振兴街街道综合养老服务中心长者食堂 | B26: 槐荫区 | C26: 985 | D26: 17 | E26: 441 | F26: 441 | G26: 527 | H26: 1054 | I26: 0 | J26: 0 | K26: 985 | L26: 1495
A27: 槐荫区营市街街道综合养老服务中心长者食堂 | B27: 槐荫区 | C27: 2486 | D27: 1338 | E27: 720 | F27: 720 | G27: 428 | H27: 856 | I27: 0 | J27: 0 | K27: 2486 | L27: 1576
A28: 槐荫区兴福街道济水上苑南区社区助餐服务站 | B28: 槐荫区 | C28: 54 | D28: 18 | E28: 33 | F28: 33 | G28: 3 | H28: 6 | I28: 0 | J28: 0 | K28: 54 | L28: 39
A29: 槐荫区玉清湖街道北八里社区助餐服务站 | B29: 槐荫区 | C29: 1933 | D29: 21 | E29: 1681 | F29: 1681 | G29: 197 | H29: 394 | I29: 34 | J29: 68 | K29: 1933 | L29: 2143
A30: 槐荫区美里湖街道综合养老服务中心长者食堂 | B30: 槐荫区 | C30: 4152 | D30: 2715 | E30: 1326 | F30: 1326 | G30: 109 | H30: 218 | I30: 2 | J30: 4 | K30: 4152 | L30: 1548
A31: 南辛庄街道南辛东路社区日间照料中心 | B31: 槐荫区 | C31: 10 | D31: 0 | E31: 2 | F31: 2 | G31: 8 | H31: 16 | I31: 0 | J31: 0 | K31: 10 | L31: 18
A32: 槐荫区道德街街道综合养老服务中心长者食堂 | B32: 槐荫区 | C32: 7 | D32: 6 | E32: 0 | F32: 0 | G32: 1 | H32: 2 | I32: 0 | J32: 0 | K32: 7 | L32: 2
A33: 槐荫区吴家堡街道康城新苑日间照料中心长者食堂 | B33: 槐荫区 | C33: 1310 | D33: 1 | E33: 5 | F33: 5 | G33: 1302 | H33: 2604 | I33: 2 | J33: 4 | K33: 1310 | L33: 2613
A34: 合计 | B34: \ | C34: =SUM(C7:C33) -> 32314 | D34: =SUM(D7:D33) -> 9693 | E34: 13443 | F34: 13443 | G34: 9094 | H34: 18188 | I34: 84 | J34: 168 | K34: 32314 | L34: 31799
A35: 注:1.此表一式四份（市级两份），由县、市民政主管业务科（处）室存档。

Sheet 附件12-1大中专
A1: 附件12-1
A2: 2024 年大中专毕业生入职养老服务一次性奖补汇总表
A3: 槐荫区 民政局、财政局（盖章）
A4: 序号 | B4: 姓名 | C4: 性别 | D4: 出生年月 | E4: 身份证号码 | F4: 户籍所在地 | G4: 毕业院校 | H4: 毕业时间 | I4: 毕业证书编号 | J4: 学历 | N4: 参加养老工作时间 | O4: 现工作机构名称 | P4: 入职本养老机构时间（年月） | Q4: 与现工作机构签订劳动合同时间（年月） | R4: 在养老机构连续工作年限 | S4: 申请大学生入职养老服务补助 | V4: 申请岗位补助 | X4: 申请补助数额（元）
J5: 中职（技工院校） | K5: 专科（高职） | L5: 本科 | M5: 硕士研究生及以上 | S5: 第一年度 | T5: 第二年度 | U5: 第三年度 | V5: 满5年以上第几年 | W5: 满10年以上第几年
A6: 1 | B6: 赵梦迪 | C6: 女 | D6: 2001.09 | E6: 3701****2828 | F6: 山东省济南市 | G6: 山东医学高等专科学校 | H6: 2003.06.30 | I6: 1044****2243 | K6: √ | N6: 2023.07 | O6: 济南市槐荫区慈辉颐养中心 | P6: 2023.07 | Q6: 2023.07 | R6: 1 | S6: √ | X6: 4500
A7: 2 | B7: 金丽元 | C7: 女 | D7: 2002.10 | E7: 3709****1226 | F7: 山东省泰安市 | G7: 泰山护理职业学院 | H7: 2023.06.18 | I7: 1434****0925 | K7: √ | N7: 2023.10 | O7: 济南市槐荫区慈辉颐养中心 | P7: 2023.10 | Q7: 2023.10 | R7: 1 | S7: √ | X7: 4500
A8: 3 | B8: 梁晓宁 | C8: 女 | D8: 2002.12 | E8: 3715****032X | F8: 山东省聊城市 | G8: 聊城职业技术学院 | H8: 2023.06.16 | I8: 1244****0129 | K8: √ | N8: 2023.10 | O8: 济南市槐荫区慈辉颐养中心 | P8: 2023.10 | Q8: 2023.10 | R8: 1 | S8: √ | X8: 4500
A9: 4 | B9: 苑枭腾 | C9: 男 | D9: 2001.01 | E9: 3714****4011 | F9: 山东省德州市 | G9: 济南护理职业学院 | H9: 2022.07.01 | I9: 1434****0840 | K9: √ | N9: 2023.02 | O9: 济南市槐荫区慈辉颐养中心 | P9: 2023.02 | Q9: 2023.02 | R9: 1 | S9: √ | X9: 4500
A10: 5 | B10: 冯鑫政 | C10: 男 | D10: 2000.02 | E10: 3715****5716 | F10: 山东省聊城市 | G10: 莱芜职业技术学院 | H10: 2021.06.30 | I10: 1233****2841 | K10: √ | N10: 2023.02 | O10: 济南市槐荫区慈辉颐养中心 | P10: 2023.02 | Q10: 2023.02 | R10: 1 | S10: √ | X10: 4500
A11: 6 | B11: 张笑 | C11: 女 | D11: 2002.08 | E11: 1423****3048 | F11: 山西省文水县 | G11: 济南护理职业学院 | H11: 2022.07.01 | I11: 1434****0435 | K11: √ | N11: 2023.02 | O11: 济南市槐荫区慈辉颐养中心 | P11: 2023.02 | Q11: 2023.02 | R11: 1 | S11: √ | X11: 4500
A12: 7 | B12: 陈淑 | C12: 女 | D12: 2000.02 | E12: 3729****8024 | F12: 山东省菏泽市 | G12: 山东药品职业学院 | H12: 2021.07.01 | I12: 1396****0577 | K12: √ | N12: 2023.06 | O12: 济南市槐荫区慈辉颐养中心 | P12: 2023.06 | Q12: 2023.06 | R12: 2 | T12: √ | X12: 4500 | Y12: 第二次 省级奖补
A13: 8 | B13: 赵珊珊 | C13: 女 | D13: 2000.01 | E13: 3704****6126 | F13: 山东省枣庄市 | G13: 山东力明科技职业学院 | H13: 2023.07.20 | I13: 1284****1418 | K13: √ | N13: 2023.08 | O13: 济南市槐荫区慈辉颐养中心 | P13: 2023.08 | Q13: 2023.08 | R13: 1 | S13: √ | X13: 4500
A14: 9 | B14: 张新悦 | C14: 女 | D14: 2002.03 | E14: 3713****6925 | F14: 山东省临沂市 | G14: 菏泽医学专科学校 | H14: 2023.06.30 | I14: 1044****2232 | K14: √ | N14: 2023.11 | O14: 济南市槐荫区慈辉颐养中心 | P14: 2023.11 | Q14: 2023.11 | R14: 1 | S14: √ | X14: 4500
A15: 10 | B15: 刘轲 | C15: 女 | D15: 2003.01 | E15: 3715****3123 | F15: 山东省聊城市 | G15: 聊城职业技术学院 | H15: 2023.06.16 | I15: 1244****0064 | K15: √ | N15: 2023.08 | O15: 济南市槐荫区慈辉颐养中心 | P15: 2023.10 | Q15: 2023.10 | R15: 1 | S15: √ | X15: 4500
A16: 11 | B16: 郭秋月 | C16: 女 | D16: 2003.08 | E16: 3715****6326 | F16: 山东省聊城市 | G16: 聊城职业技术学院 | H16: 2023.06.16 | I16: 1244****0037 | K16: √ | N16: 2023.10 | O16: 济南市槐荫区慈辉颐养中心 | P16: 2023.10 | Q16: 2023.10 | R16: 1 | S16: √ | X16: 4500
A17: 12 | B17: 赵荻 | C17: 女 | D17: 2001.09 | E17: 3709****1047 | F17: 山东省泰安市 | G17: 山东力明科技职业学院 | H17: 2023.07.20 | I17: 1284****1439 | K17: √ | N17: 2023.09 | O17: 济南市槐荫区慈辉颐养中心 | P17: 2023.09 | Q17: 2023.09 | R17: 1 | S17: √ | X17: 4500
A18: 13 | B18: 郑春燕 | C18: 女 | D18: 1998.10 | E18: 3714****6506 | F18: 山东省德州市 | G18: 青岛黄海学院 | H18: 2020.06.25 | I18: 1332****0811 | K18: √ | N18: 2021.04 | O18: 济南市绿苑福鼎老年公寓 | P18: 2023.02 | Q18: 2023.02 | R18: 2 | U18: √ | X18: 4500 | Y18: 第三次 省级奖补
A19: 14 | B19: 陈梦萍 | C19: 女 | D19: 1999.02 | E19: 3714****5023 | F19: 山东省德州市 | G19: 淄博职业学院 | H19: 2021.06.30 | I19: 1300****0402 | K19: √ | N19: 2021.07 | O19: 济南市绿苑福鼎老年公寓 | P19: 2023.06 | Q19: 2023.06 | R19: 2 | S19: √ | X19: 4500
A20: 15 | B20: 郎玉娟 | C20: 女 | D20: 1998.07 | E20: 3707****2249 | F20: 山东省潍坊市 | G20: 山东现代学院 | H20: 2020.07.01 | I20: 1332****1510 | K20: √ | N20: 2022.10 | O20: 济南市蕾娜范康养中心 | P20: 2022.09 | Q20: 2022.09 | R20: 2 | T20: √ | X20: 1500 | Y20: 第二次 市级奖补
A21: 16 | B21: 贾雪军 | C21: 女 | D21: 1998.03 | E21: 3712****1528 | F21: 山东省济南市 | G21: 潍坊工商职业学院 | H21: 2020.07.05 | I21: 1338****0615 | K21: √ | N21: 2021.03 | O21: 济南市蕾娜范康养中心 | P21: 2021.03 | Q21: 2021.03 | R21: 3 | U21: √ | X21: 4500 | Y21: 第三次 省级奖补
A22: 17 | B22: 程冰冰 | C22: 女 | D22: 2001.05 | E22: 3715****7827 | F22: 山东省聊城市 | G22: 菏泽职业家政学院 | H22: 2022.06.30 | I22: 1411****1223 | K22: √ | N22: 2023.04 | O22: 济南市蕾娜范康养中心 | P22: 2024.04 | Q22: 2024.04 | R22: 1.5 | S22: √ | X22: 4500
A23: 18 | B23: 刘玫 | C23: 女 | D23: 2021.05 | E23: 3714****4868 | F23: 山东省德州市 | G23: 枣庄科技职业学院 | H23: 2022.06.20 | I23: 1339****1334 | K23: √ | N23: 2023.04 | O23: 济南市蕾娜范康养中心 | P23: 2024.04 | Q23: 2024.04 | R23: 1.5 | S23: √ | X23: 4500
A24: 19 | B24: 王瑞 | C24: 男 | D24: 1999.03 | E24: 3709****6911 | F24: 山东省肥城市 | G24: 山东力明科技职业学院 | H24: 202.07.20 | I24: 1284****0298 | K24: √ | N24: 2021.06 | O24: 济南市槐荫区颐养天年养老院 | P24: 2021.06 | Q24: 2021.06 | R24: 3 | T24: √ | X24: 4500 | Y24: 第二次 省级奖补
A25: 20 | B25: 王瑞 | C25: 男 | D25: 1999.03 | E25: 3709****6911 | F25: 山东省肥城市 | G25: 山东力明科技职业学院 | H25: 202.07.20 | I25: 1284****0298 | K25: √ | N25: 2021.06 | O25: 济南市槐荫区颐养天年养老院 | P25: 2021.06 | Q25: 2021.06 | R25: 3 | T25: √ | X25: 1500 | Y25: 第二次 市级奖补
A26: 21 | B26: 王洪扬 | C26: 男 | D26: 2004.09 | E26: 1305****2014 | F26: 河北省邢台市 | G26: 石家庄天使护士学校 | H26: 2023.07.01 | I26: 3002****0927 | J26: √ | N26: 2023.04 | O26: 济南市槐荫区颐养天年养老院 | P26: 2023.04 | Q26: 2023.04 | R26: 1 | S26: √ | X26: 3000
A27: 22 | B27: 张家慧 | C27: 女 | D27: 2001.06 | E27: 3701****1427 | F27: 山东省济南市 | G27: 山东中医药高等专科学校 | H27: 2023.06.30 | I27: 1377****4182 | K27: √ | N27: 2023.08 | O27: 济南市槐荫区颐养天年养老院 | P27: 2023.08 | Q27: 2023.08 | R27: 1 | S27: √ | X27: 4500
A28: 23 | B28: 刘彩云 | C28: 女 | D28: 2000.09 | E28: 3709****3229 | F28: 山东省肥城市 | G28: 枣庄科技职业学院 | H28: 2022.06.20 | I28: 1339****0070 | K28: √ | N28: 2023.02 | O28: 济南市槐荫区颐养天年养老院 | P28: 2023.02 | Q28: 2023.02 | R28: 1 | S28: √ | X28: 4500
A29: 24 | B29: 王玉茹 | C29: 女 | D29: 1994.09 | E29: 3701****3328 | F29: 山东省济南市 | G29: 菏泽职业家政学院 | H29: 2021.07.10 | I29: 1411****0095 | K29: √ | N29: 2022.11 | O29: 济南市槐荫区颐养天年养老院 | P29: 2022.11 | Q29: 2023.12 | R29: 2 | S29: √ | X29: 4500
A30: 25 | B30: 信怡华 | C30: 女 | D30: 2002.06 | E30: 3714****1522 | F30: 山东省临邑县 | G30: 山东中医药高等专科学校 | H30: 2023.06.30 | I30: 1377****2924 | K30: √ | N30: 2023.09 | O30: 济南市槐荫区颐养天年养老院 | P30: 2023.09 | Q30: 2023.09 | R30: 1 | S30: √ | X30: 4500
A31: 26 | B31: 周美娟 | C31: 女 | D31: 2001.12 | E31: 3701****3022 | F31: 山东省平阴县 | G31: 山东中医药高等专科学校 | H31: 2023.06.30 | I31: 1377****2940 | K31: √ | N31: 2023.09 | O31: 济南市槐荫区颐养天年养老院 | P31: 2023.09 | Q31: 2023.09 | R31: 1 | S31: √ | X31: 4500
A32: 27 | B32: 纪晓晴 | C32: 女 | D32: 2001.07 | E32: 3729****1526 | F32: 山东省巨野县 | G32: 菏泽家政职业学院 | H32: 2022.06.30 | I32: 1411****2124 | K32: √ | N32: 2023.09 | O32: 济南市槐荫区颐养天年养老院 | P32: 2023.09 | Q32: 2023.09 | R32: 1 | S32: √ | X32: 4500
A33: 28 | B33: 李成森 | C33: 男 | D33: 2000.11 | E33: 3715****701X | F33: 山东省聊城市 | G33: 菏泽医学专科学校 | H33: 2022.06.30 | I33: 1044****1272 | K33: √ | N33: 2023.08 | O33: 济南市槐荫区颐养天年养老院 | P33: 2023.08 | Q33: 2023.08 | R33: 1 | S33: √ | X33: 4500
A34: 29 | B34: 张悦 | C34: 女 | D34: 2002.07 | E34: 3708****1340 | F34: 山东省梁山县 | G34: 山东中医药高等专科学校 | H34: 2023.06.30 | I34: 1377****2936 | K34: √ | N34: 2023.07 | O34: 济南市槐荫区颐养天年养老院 | P34: 2023.07 | Q34: 2023.07 | R34: 1 | S34: √ | X34: 4500
A35: 30 | B35: 刘晗琪 | C35: 男 | D35: 1998.09 | E35: 3709****6110 | F35: 山东省肥城市 | G35: 山东力明科技职业学院 | H35: 2020.07.20 | I35: 1284****0272 | K35: √ | N35: 2020.8 | O35: 济南市槐荫区颐养天年养老院 | P35: 2020.08 | Q35: 2020.08 | R35: 4 | U35: √ | X35: 4500 | Y35: 第三次 省级奖补
A36: 31 | B36: 周钦荣 | C36: 女 | D36: 2000.06 | E36: 3703****182X | F36: 山东省淄博市 | G36: 山东交通职业学院 | H36: 2022.06.26 | I36: 1300****2921 | K36: √ | N36: 2021.08 | O36: 济南绿地幸福家养护院 | P36: 2022.07 | Q36: 2022.07 | R36: 2 | T36: √ | X36: 4500 | Y36: 第二次 省级奖补
A37: 32 | B37: 林烨 | C37: 女 | D37: 2001.10 | E37: 3715****524X | F37: 山东省高唐县 | G37: 济南护理职业学院 | H37: 2023.07.01 | I37: 1434****1426 | K37: √ | N37: 2022.09 | O37: 济南绿地幸福家养护院 | P37: 2023.07 | Q37: 2023.07 | R37: 2 | S37: √ | X37: 4500
A38: 33 | B38: 苏子健 | C38: 男 | D38: 2002.10 | E38: 3713****121X | F38: 山东省莒南县 | G38: 济南护理职业学院 | H38: 2023.07.01 | I38: 1434****1436 | K38: √ | N38: 2022.06 | O38: 济南市槐荫区尊尚老年公寓 | P38: 2024.01 | Q38: 2024.01 | R38: 2 | S38: √ | X38: 4500
A39: 34 | B39: 夏梦露 | C39: 女 | D39: 2000.03 | E39: 3729****3922 | F39: 山东省菏泽市 | G39: 济南护理职业学院 | H39: 2022.07.01 | I39: 1434****0222 | K39: √ | N39: 2022.09 | O39: 济南曜阳国际老年公寓 | P39: 2022.09 | Q39: 2022.09 | R39: 2 | T39: √ | X39: 1500 | Y39: 第二次 市级奖补
A40: 35 | B40: 陈天一 | C40: 女 | D40: 1998.11 | E40: 3707****6122 | F40: 山东省潍坊市 | G40: 潍坊护理职业职业学院 | H40: 2021.07.01 | I40: 1434****0952 | K40: √ | N40: 2023.04 | O40: 济南曜阳国际老年公寓 | P40: 2023.04 | Q40: 2023.04 | R40: 1 | S40: √ | X40: 4500
A41: 36 | B41: 杜毕林 | C41: 男 | D41: 2001.12 | E41: 3715****4056 | F41: 山东省聊城市 | G41: 济南护理职业学院 | H41: 2023.07.01 | I41: 1434****1381 | K41: √ | N41: 2023.07 | O41: 济南曜阳国际老年公寓 | P41: 2023.07 | Q41: 2023.07 | R41: 1 | S41: √ | X41: 4500
A42: 37 | B42: 苏秀娟 | C42: 女 | D42: 1999.09 | E42: 3708****0629 | F42: 山东省嘉祥县 | G42: 潍坊护理职业学院 | H42: 2021.07.01 | I42: 1434****0966 | K42: √ | N42: 2023.05 | O42: 济南曜阳国际老年公寓 | P42: 2023.04 | Q42: 2023.04 | R42: 1 | S42: √ | X42: 4500
A43: 38 | B43: 张福佳 | C43: 男 | D43: 2002.05 | E43: 3713****115X | F43: 山东省临沂市 | G43: 济南护理职业学院 | H43: 2023.07.01 | I43: 1434****1406 | K43: √ | N43: 2023.07 | O43: 济南曜阳国际老年公寓 | P43: 2023.07 | Q43: 2023.07 | R43: 1 | S43: √ | X43: 4500
A44: 39 | B44: 韩宗盈 | C44: 女 | D44: 2002.02 | E44: 3701****0020 | F44: 山东省济南市 | G44: 山东经贸职业学院 | H44: 2023.07.01 | I44: 1331****0027 | K44: √ | N44: 2023.07 | O44: 济南市槐荫区锦湘老年公寓 | P44: 2023.07 | Q44: 2023.07 | R44: 1 | S44: √ | X44: 4500
A45: 40 | B45: 姜淑祯 | C45: 女 | D45: 1999.12 | E45: 3701****6526 | F45: 山东省济南市 | G45: 山东中药大学 | H45: 2021.06 | I45: 1044****0922 | L45: √ | N45: 2023.07 | O45: 段店北路街道综合养老服务中心 | P45: 2023.07 | Q45: 2023.07 | R45: 1 | S45: √ | X45: 6000
A46: 41 | B46: 杜翠杰 | C46: 女 | D46: 1997.12 | E46: 3709****1827 | F46: 山东省泰安市 | G46: —— | H46: —— | I46: —— | J46: —— | K46: —— | L46: —— | M46: —— | N46: 2019.07 | O46: 济南曜阳国际老年公寓 | P46: 2019.07 | Q46: 2023.07 | R46: 5.5 | V46: 1 | X46: 1200
A47: 42 | B47: 蒋小兰 | C47: 女 | D47: 1978.08 | E47: 5112****5581 | F47: 重庆市云阳县 | G47: —— | H47: —— | I47: —— | J47: —— | K47: —— | L47: —— | M47: —— | N47: 2016.11 | O47: 济南市绿苑福鼎老年公寓 | P47: 2019.07 | Q47: 2019.07 | R47: 8 | V47: 2 | X47: 1200
A48: 43 | B48: 王国红 | C48: 女 | D48: 1975.12 | E48: 3708****6623 | F48: 山东省泗水县 | G48: —— | H48: —— | I48: —— | J48: —— | K48: —— | L48: —— | M48: —— | N48: 2008.02 | O48: 济南市槐荫区温暖老年公寓 | P48: 2008.02 | Q48: 2015.06 | R48: 16 | W48: 4 | X48: 3000
A49: 44 | B49: 朱丽萍 | C49: 女 | D49: 1987.01 | E49: 6221****2322 | F49: 山东省济南市 | G49: —— | H49: —— | I49: —— | J49: —— | K49: —— | L49: —— | M49: —— | N49: 2013.12 | O49: 济南市槐荫区温暖老年公寓 | P49: 2018.12 | Q49: 2018.12 | R49: 6 | V49: 1 | X49: 1200
A50: 合计 | B50: ___ | C50: ___ | D50: ___ | E50: ___ | F50: ___ | I50: ___ | J50: ___ | K50: ___ | L50: ___ | M50: ___ | N50: ___ | P50: ___ | Q50: ___ | R50: ___ | X50: =SUM(X6:X49) -> 177600
A51: 注：此表以县（区）为单位逐级统一上报。

Sheet 附件13-1养老护理
A1: 附件13-1
A2: 2024 年养老护理员职业技能等级奖补汇总表
A3: 槐荫区 民政局、财政局（盖章）
A4: 序号 | B4: 姓名 | C4: 性别 | D4: 出生年月 | E4: 身份证号码 | F4: 户籍所在地 | G4: 参加工作时间 | H4: 证书编号 | I4: 现工作机构 | J4: 连续从事护理岗位时间（年数） | K4: 开始从事护理岗位日期（年月） | L4: 现养老护理职业技能等级 | O4: 取得现职业技能等级证书时间 | P4: 申请市级养老护理员职业技能等级补助数额（元）
L5: 一级/高级工 | M5: 二级/技师 | N5: 三级/高级技师
A6: 1 | B6: 孙云霄 | C6: 女 | D6: 1998.05 | E6: 3701****7521 | F6: 山东省济南市 | G6: 2022.11 | H6: S000****0013 | I6: 济南市槐荫区慈辉颐养中心 | J6: 5年 | K6: 2022.11 | N6: √ | O6: 2024.03.15 | P6: 4500
A7: 2 | B7: 陈淑 | C7: 女 | D7: 2000.02 | E7: 3729****8024 | F7: 山东省菏泽市 | G7: 2021.08 | H7: S000****0060 | I7: 济南市槐荫区慈辉颐养中心 | J7: 3年 | K7: 2021.07 | N7: √ | O7: 2024.11.06 | P7: 4500
A8: 3 | B8: 杜翠杰 | C8: 女 | D8: 1997.12 | E8: 3709****1827 | F8: 山东省泰安市 | G8: 2019.07 | H8: S000****0194 | I8: 济南曜阳国际老年公寓 | J8: 5年 | K8: 2019.07 | N8: √ | O8: 2024.05.14 | P8: 4500
A9: 4 | B9: 周钦荣 | C9: 女 | D9: 2000.06 | E9: 3703****182X | F9: 山东省淄博市 | G9: 2021.08 | H9: S000****0075 | I9: 济南绿地幸福家养护院 | J9: 3年 | K9: 2021.08 | N9: √ | O9: 2024.04.10 | P9: 4500
A10: 5 | B10: 杨梅英 | C10: 女 | D10: 1975.05 | E10: 3725****6949 | F10: 山东省济南市 | G10: 2022.07 | H10: S000****0119 | I10: 济南绿地幸福家养护院 | J10: 2年 | K10: 2022.07 | N10: √ | O10: 2024.05.14 | P10: 4500
A11: 6 | B11: 付翠英 | C11: 女 | D11: 1973.03 | E11: 3712****1545 | F11: 山东省济南市 | G11: 2021.10 | H11: S000****0078 | I11: 济南绿地幸福家养护院 | J11: 3年 | K11: 2021.10 | N11: √ | O11: 2024.04.10 | P11: 4500
A12: 7 | B12: 杨涵 | C12: 女 | D12: 1996.08 | E12: 3701****4540 | F12: 山东省济南市 | G12: 2021.03 | H12: S000****0186 | I12: 济南绿地幸福家养护院 | J12: 3年 | K12: 2021.03 | N12: √ | O12: 2024.05.14 | P12: 4500
A13: 8 | B13: 周雨 | C13: 女 | D13: 1977.08 | E13: 3723****0421 | F13: 山东省济南市 | G13: 2022.09 | H13: S000****0361 | I13: 济南绿地幸福家养护院 | J13: 2年 | K13: 2022.09 | N13: √ | O13: 2024.06.17 | P13: 4500
A14: 合计 | B14: ___ | C14: ___ | D14: ___ | E14: ___ | F14: ___ | G14: ___ | I14: ___ | J14: ___ | K14: ___ | L14: ___ | N14: ___ | O14: ___ | P14: =SUM(P6:P13) -> 36000
A15: 注：1.此表以县（市、区）和市为单位逐级统一上报。

Sheet 附件14照护需求评估
A1: 附件14
A2: 2024 年困难老人照护需求评估费用汇总表
A3: 槐荫区 民政局、财政局（盖章）
A4: 序号 | B4: 60周岁以上老年人类型 | C4: 评估时间 | D4: 人数 | E4: 评估金额元/人 | F4: 总费用（万元）
A6: 1 | B6: 特困供养人员 | C6: 2024年 | D6: 16 | E6: 100 | F6: =D6*E6/10000 -> 0.16
A7: 2 | B7: 低保对象 | C7: 2024年 | D7: 31 | E7: 100 | F7: =D7*E7/10000 -> 0.31
A8: 3 | B8: 优抚对象 | C8: 2024年 | D8: 1 | E8: 100 | F8: =D8*E8/10000 -> 0.01
A9: 4 | B9: 计划生育特殊家庭 | C9: 2024年 | D9: 141 | E9: 100 | F9: =D9*E9/10000 -> 1.41
A10: 5 | B10: 重度残疾 | C10: 2024年 | D10: 61 | E10: 100 | F10: =D10*E10/10000 -> 0.61
A11: 合计 | B11: ___ | D11: =SUM(D6:D10) -> 250 | E11: ___ | F11: =SUM(F6:F10) -> 2.5
A12: 注：1.此表以县（市、区）和市为单位逐级统一上报。

Sheet 附件16适老化改造
A1: 附件16-1：
A2: 济南市经济困难老年人家庭适老化 改造资金汇总表
A3: 单位（公章）：槐荫区民政局 填报时间：2024年9月3日
A4: 对象类别（纳入特困供养、建档立卡范围内） | B4: 改造户数 | C4: 改造费用 | D4: 备注
A5: 分散供养特困人员家庭 | B5: 5 | C5: 9433
A6: 低保、建档立卡高龄（80周岁及以上）老年人家庭 | B6: 2 | C6: 3736
A7: 低保、建档立卡失能老年人家庭
A8: 低保、建档立卡残疾老年人家庭 | B8: 6 | C8: 10842
A9: 合 计 | B9: 13 | C9: 24011
A10: 注：已享受低收入残疾人家庭无障碍改造的家庭不在申请范围
